bitfinex-derivatives/quotes_SOLF0:USTF0_20251228
["timestamp","ask_amount","ask_price","bid_price","bid_amount"]
[1766952337154,5.53130039,123.23,123.18,3.88]
[1766952338254,12.83990039,123.23,123.18,3.88]
[1766952340456,11.32082943,123.23,123.18,3.88]
[1766952342058,5.47907096,123.22,123.16,3.88]
[1766952342365,3.96,123.19,123.14,3.88]
[1766952342758,1.51907096,123.19,123.12,7.3146]
[1766952343060,3.96,123.19,123.12,3.88]
[1766952343265,5.47907096,123.18,123.12,3.88]
[1766952343466,3.96,123.16,123.1,3.88]
[1766952343765,4.01188804,123.16,123.1,5.39907096]
[1766952343955,4.01188804,123.16,123.1,3.88]
[1766952344152,5.530959,123.16,123.1,3.88]
[1766952344353,0.05188804,123.16,123.11,5.39907096]
[1766952344563,0.05188804,123.16,123.12,3.88]
[1766952345764,109.98897096,123.21,123.14,6.72907096]
[1766952345965,6.75907096,123.21,123.15,5.21]
[1766952346271,1.51907096,123.19,123.13,5.21]
[1766952346763,0.06146266,123.17,123.15,0.05188804]
[1766952352170,7.08907096,123.21,123.15,5.37188804]
[1766952352366,7.08907096,123.21,123.15,5.32]
[1766952353167,0.06181455,123.19,123.17,0.05742296]
[1766952354061,7.15088551,123.19,123.13,5.32]
[1766952355058,7.15088551,123.19,123.15,0.05592774]
[1766952358368,5.63181455,123.19,123.15,0.05592774]
[1766952359875,7.15088551,123.19,123.15,0.05592774]
[1766952360775,5.63181455,123.19,123.15,0.05592774]
[1766952362879,7.15088551,123.19,123.15,0.05592774]
[1766952363075,7.08907096,123.18,123.15,0.05592774]
[1766952363378,1.51907096,123.16,123.1,5.32]
[1766952364486,0.05916221,123.14,123.1,5.32]
[1766952365977,0.05916221,123.14,123.1,14.15497096]
[1766952366476,0.05916221,123.14,123.11,5.32]
[1766952369584,14.40147096,123.17,123.11,5.32]
[1766952370584,5.62584747,123.15,123.13,0.05363999]
[1766952370882,5.62584747,123.15,123.1,7.3159]
[1766952370883,5.62584747,123.15,123.1,12.6359]
[1766952371289,0.05584747,123.15,123.1,12.6359]
[1766952371679,0.05584747,123.15,123.1,14.15497096]
[1766952372885,0.05584747,123.15,123.1,12.6359]
[1766952375485,0.05584747,123.15,123.1,14.15497096]
[1766952380294,0.05584747,123.15,123.1,12.6359]
[1766952380488,0.05584747,123.15,123.1,14.15497096]
[1766952381090,0.05584747,123.15,123.11,6.16]
[1766952388804,6.48584747,123.15,123.1,7.3159]
[1766952389105,8.00491843,123.15,123.1,6.16]
[1766952390007,0.05584747,123.15,123.1,7.67907096]
[1766952390206,0.05584747,123.15,123.11,7.67907096]
[1766952390408,0.05345237,123.14,123.11,7.67907096]
[1766952392208,6.43,123.17,123.12,6.16]
[1766952392410,6.43,123.19,123.14,7.67907096]
[1766952392596,1.51907096,123.21,123.14,7.67907096]
[1766952392804,7.94907096,123.21,123.14,7.67907096]
[1766952393307,0.052527,123.19,123.16,0.05897459]
[1766952402511,0.052527,123.19,123.16,6.21897459]
[1766952405014,13.7389,123.23,123.16,6.21897459]
[1766952405315,13.7389,123.23,123.18,6.88]
[1766952405615,13.7389,123.23,123.13,10.13227977]
[1766952405616,7.21,123.27,123.2,6.88]
[1766952405917,9.58508163,123.26,123.2,6.88]
[1766952406118,0.06245562,123.24,123.22,0.05227308]
[1766952407913,9.58508163,123.3,123.22,6.93227308]
[1766952408221,7.21,123.3,123.22,6.88]
[1766952408423,7.21,123.3,123.24,6.88]
[1766952408924,0.06056531,123.28,123.26,0.05274165]
[1766952410324,8.95349434,123.32,123.26,6.93274165]
[1766952410522,9.58508163,123.31,123.26,6.93274165]
[1766952410724,9.58508163,123.31,123.26,0.05274165]
[1766952411525,0.05655576,123.3,123.26,0.05274165]
[1766952414322,7.50655576,123.3,123.26,0.00274165]
[1766952415629,14.81125576,123.3,123.26,0.00274165]
[1766952418023,1.74349434,123.32,123.26,7.11274165]
[1766952419334,0.00498728,123.3,123.26,7.11274165]
[1766952419722,0.00498728,123.3,123.27,9.48508163]
[1766952419918,7.45,123.34,123.28,7.11]
[1766952420928,0.05327018,123.32,123.3,7.16583033]
[1766952423423,16.16063529,123.39,123.31,2.37508163]
[1766952423630,14.7493,123.39,123.32,7.11]
[1766952424431,7.45,123.39,123.32,7.11]
[1766952424631,7.45,123.39,123.31,2.37508163]
[1766952424632,0.05700476,123.37,123.34,7.16229235]
[1766952426033,17.12308163,123.41,123.34,7.16229235]
[1766952426628,7.45,123.41,123.34,7.16229235]
[1766952427028,7.45,123.43,123.35,7.11]
[1766952427831,7.45,123.43,123.36,7.11]
[1766952428029,0.05136888,123.41,123.38,0.05197247]
[1766952431120,7.2962,123.44,123.38,7.16197247]
[1766952431432,2.37508163,123.45,123.38,7.16197247]
[1766952431644,14.745,123.46,123.39,7.11]
[1766952432234,0.05642635,123.44,123.41,0.05178806]
[1766952433333,7.50642635,123.44,123.41,0.05178806]
[1766952433825,9.82508163,123.42,123.35,7.11]
[1766952434026,9.82508163,123.4,123.33,7.11]
[1766952434821,0.05221338,123.38,123.35,0.05984116]
[1766952435028,0.00221338,123.38,123.35,7.16984116]
[1766952439333,0.00221338,123.38,123.36,7.63]
[1766952439523,0.00221338,123.38,123.36,14.9306]
[1766952439730,0.00221338,123.38,123.37,7.63]
[1766952443146,0.00221338,123.38,123.35,7.68984116]
[1766952449044,0.00221338,123.38,123.35,0.05984116]
[1766952449436,0.00221338,123.38,123.35,7.68984116]
[1766952452733,0.00221338,123.38,123.35,0.05984116]
[1766952453137,0.00221338,123.38,123.33,7.63]
[1766952453138,7.83221338,123.38,123.33,7.63]
[1766952454150,7.83221338,123.38,123.34,0.06064838]
[1766952456347,15.13201338,123.38,123.34,0.06064838]
[1766952456653,16.64774979,123.38,123.34,0.06064838]
[1766952457753,0.00221338,123.38,123.32,9.14573641]
[1766952458043,0.00221338,123.38,123.33,1.51573641]
[1766952458245,0.00221338,123.38,123.32,9.14573641]
[1766952458846,0.00221338,123.38,123.34,0.05430011]
[1766952470264,8.34221338,123.38,123.34,0.05430011]
[1766952473153,0.00221338,123.38,123.35,10.08573641]
[1766952473353,0.00221338,123.38,123.37,1.51573641]
[1766952474960,8.33,123.42,123.37,10.08573641]
[1766952475763,8.33,123.42,123.37,8.57]
[1766952476058,0.05946905,123.41,123.38,0.06017912]
[1766952482266,9.90520546,123.41,123.38,0.00017912]
[1766952482457,9.84573641,123.4,123.38,0.00017912]
[1766952482651,9.84573641,123.39,123.33,8.57]
[1766952483565,0.05778412,123.37,123.35,0.05167419]
[1766952484672,8.38778412,123.37,123.35,0.00167419]
[1766952490873,0.05778412,123.37,123.35,0.00167419]
[1766952498265,8.77778412,123.37,123.35,0.00167419]
[1766952498655,8.77778412,123.37,123.31,10.13227977]
[1766952498856,8.77778412,123.37,123.31,1.51573641]
[1766952499659,8.77778412,123.37,123.33,0.05787448]
[1766952505676,8.77778412,123.37,123.33,1.57361089]
[1766952506077,8.77778412,123.37,123.34,1.51573641]
[1766952509684,8.77778412,123.37,123.33,1.57361089]
[1766952510886,8.77778412,123.37,123.34,1.51573641]
[1766952516494,8.77778412,123.37,123.33,2.42550031]
[1766952527598,0.05778412,123.37,123.33,19.69800031]
[1766952527907,9.51,123.38,123.33,10.02787448]
[1766952528704,9.51,123.38,123.34,7.3019]
[1766952528901,0.06226748,123.37,123.34,7.3019]
[1766952530205,9.51,123.38,123.34,7.3019]
[1766952531202,0.05547678,123.37,123.34,7.3019]
[1766952531900,9.53,123.4,123.35,17.4112]
[1766952532902,0.05150072,123.39,123.36,0.05903431]
[1766952549608,9.58150072,123.39,123.33,10.11]
[1766952550623,9.58150072,123.39,123.33,17.4125]
[1766952550817,9.58150072,123.39,123.35,0.06212128]
[1766952551016,9.58150072,123.39,123.35,0.00212128]
[1766952551232,9.53,123.38,123.35,0.00212128]
[1766952551518,16.8297,123.38,123.35,0.00212128]
[1766952551712,9.53,123.37,123.35,0.00212128]
[1766952552424,9.53,123.36,123.35,0.00212128]
[1766952557618,0.49787872,123.35,123.3,10.11]
[1766952557813,9.53,123.36,123.3,10.11]
[1766952558623,9.67,123.4,123.33,12.43762583]
[1766952559627,0.06099504,123.38,123.35,0.05455459]
[1766952565326,9.73099504,123.38,123.35,0.05455459]
[1766952576250,0.06099504,123.38,123.35,0.05455459]
[1766952578456,0.06099504,123.38,123.35,1.56950109]
[1766952579258,0.06099504,123.38,123.35,11.63950109]
[1766952588858,0.06099504,123.38,123.28,95.8]
[1766952588859,9.60099504,123.38,123.23,24.82252283]
[1766952589058,9.54,123.39,123.26,9.6]
[1766952589358,9.54,123.39,123.28,9.6]
[1766952589359,95.8,123.38,123.28,9.6]
[1766952589554,33.94,123.39,123.2,47.28]
[1766952589555,6.01631861,123.37,123.3,9.6]
[1766952589865,9.54,123.39,123.33,11.1149465]
[1766952590167,9.54,123.39,123.36,1.5149465]
[1766952590463,9.54,123.39,123.26,95.8]
[1766952590464,9.54,123.39,123.37,1.5149465]
[1766952590659,9.54,123.39,123.35,9.6]
[1766952591165,9.54,123.39,123.36,1.57017141]
[1766952591357,1.5149465,123.44,123.36,1.57017141]
[1766952591664,7.2968,123.43,123.36,1.5149465]
[1766952591961,8.8117465,123.43,123.36,1.5149465]
[1766952592156,1.5149465,123.42,123.38,0.0555059]
[1766952592362,1.5149465,123.4,123.35,9.6]
[1766952592563,1.5149465,123.39,123.33,10.16]
[1766952593050,1.5149465,123.38,123.33,10.16]
[1766952593258,1.56764754,123.37,123.34,0.05453707]
[1766952593456,1.5739153,123.37,123.34,0.05259694]
[1766952594057,0.0589688,123.37,123.34,0.05259694]
[1766952607077,1.5739153,123.37,123.34,0.05259694]
[1766952607274,1.5739153,123.37,123.32,10.16]
[1766952607476,1.5149465,123.36,123.3,10.16]
[1766952607776,8.8147465,123.38,123.31,11.6749465]
[1766952608384,0.06201158,123.36,123.33,0.05158225]
[1766952619291,0.06201158,123.36,123.33,3.31158225]
[1766952619590,7.2989,123.4,123.33,3.31158225]
[1766952619591,6.07239396,123.39,123.34,3.26]
[1766952619796,1.5149465,123.39,123.34,3.26]
[1766952619996,1.5149465,123.4,123.34,3.26]
[1766952620292,6.07248673,123.42,123.34,3.26]
[1766952620293,1.5149465,123.41,123.34,4.7749465]
[1766952620480,0.05893873,123.39,123.36,0.05410731]
[1766952623489,1.57388523,123.39,123.36,0.05410731]
[1766952623684,1.5149465,123.37,123.27,3.26]
[1766952623989,1.5149465,123.31,123.27,3.26]
[1766952624297,1.5149465,123.3,123.25,3.26]
[1766952624681,0.05995532,123.29,123.26,3.32144123]
[1766952624889,1.5149465,123.32,123.26,3.32144123]
[1766952625293,6.06715957,123.35,123.27,3.26]
[1766952625595,1.5149465,123.32,123.27,3.26]
[1766952625797,0.05505735,123.31,123.28,0.06055911]
[1766952629998,7.3027,123.33,123.28,3.32055911]
[1766952629999,1.5149465,123.33,123.28,3.32055911]
[1766952630896,0.05521869,123.32,123.28,3.32055911]
[1766952637806,1.57016519,123.32,123.28,3.32055911]
[1766952639602,1.5149465,123.3,123.28,3.32055911]
[1766952640003,1.5149465,123.29,123.23,3.51]
[1766952640198,0.0049465,123.25,123.23,3.51]
[1766952640394,0.0049465,123.25,123.19,3.51]
[1766952640707,2.37334291,123.26,123.2,3.51]
[1766952640907,2.37334291,123.26,123.22,0.05862753]
[1766952641407,2.37334291,123.26,123.22,3.56862753]
[1766952641607,2.37334291,123.26,123.22,0.05862753]
[1766952641905,2.37334291,123.24,123.18,3.51]
[1766952642498,98.21334291,123.32,123.19,3.51]
[1766952642697,2.37334291,123.27,123.19,3.51]
[1766952643006,2.37334291,123.27,123.24,0.05229462]
[1766952643198,2.4341457,123.27,123.24,0.05576067]
[1766952644405,2.4341457,123.27,123.21,3.51]
[1766952645310,2.4341457,123.27,123.23,0.05959463]
[1766952645802,2.37334291,123.26,123.23,0.05959463]
[1766952651209,0.06080279,123.27,123.23,3.51959463]
[1766952651415,2.4341457,123.27,123.23,3.51959463]
[1766952652510,0.06080279,123.27,123.23,3.51959463]
[1766952655217,0.06080279,123.27,123.24,3.46]
[1766952655218,0.00080279,123.27,123.24,3.46]
[1766952656619,0.00080279,123.27,123.25,3.46]
[1766952662325,0.00080279,123.27,123.23,3.47959463]
[1766952662820,0.00080279,123.27,123.23,0.05959463]
[1766952663024,2.37334291,123.26,123.23,0.05959463]
[1766952665736,7.30700279,123.27,123.23,0.05959463]
[1766952668938,0.00080279,123.27,123.23,3.47959463]
[1766952674635,0.00080279,123.27,123.23,7.36789463]
[1766952674842,0.00080279,123.27,123.24,3.42]
[1766952684547,0.00080279,123.27,123.25,3.37]
[1766952695664,0.00080279,123.27,123.26,3.37]
[1766952697366,0.00080279,123.27,123.24,3.37]
[1766952698569,0.00080279,123.27,123.25,3.37]
[1766952699662,0.00080279,123.27,123.26,3.37]
[1766952703969,0.00080279,123.27,123.24,3.37]
[1766952705963,1.51809188,123.27,123.24,3.37]
[1766952706268,0.00080279,123.27,123.24,3.37]
[1766952706667,1.51728909,123.25,123.23,0.05959463]
[1766952707272,1.51728909,123.25,123.22,3.5]
[1766952707477,1.51728909,123.24,123.22,3.5]
[1766952707677,1.51728909,123.24,123.2,3.5]
[1766952707873,1.51728909,123.23,123.18,3.5]
[1766952708072,1.51728909,123.22,123.18,3.5]
[1766952708277,1.51728909,123.22,123.19,0.05888307]
[1766952708669,1.51728909,123.22,123.19,3.55888307]
[1766952709370,1.57714926,123.22,123.19,3.55888307]
[1766952710076,95.86,123.32,123.2,3.5]
[1766952710276,1.51728909,123.24,123.2,3.5]
[1766952710480,1.51728909,123.25,123.2,3.5]
[1766952710978,0.06059731,123.24,123.21,0.05980833]
[1766952714981,0.00059731,123.24,123.21,3.48980833]
[1766952716079,0.00059731,123.24,123.21,5.00709742]
[1766952717678,0.00059731,123.24,123.21,3.48980833]
[1766952720179,0.00059731,123.24,123.21,0.05980833]
[1766952720385,0.00059731,123.24,123.21,3.48980833]
[1766952720882,0.00059731,123.24,123.22,3.43]
[1766952721277,0.00059731,123.24,123.21,3.48980833]
[1766952731394,0.00059731,123.24,123.22,3.43]
[1766952731698,0.00059731,123.24,123.23,3.43]
[1766952748717,1.41213707,123.31,123.25,3.24]
[1766952748718,7.3039,123.31,123.25,3.24]
[1766952749022,7.3039,123.31,123.25,4.75728909]
[1766952749718,0.05975237,123.29,123.27,0.06080075]
[1766952758332,1.57704146,123.29,123.27,0.00080075]
[1766952758527,1.57704146,123.29,123.24,3.24]
[1766952758723,1.51728909,123.28,123.24,3.24]
[1766952759525,1.51728909,123.28,123.25,0.05816846]
[1766952760422,0.05975237,123.29,123.25,0.05816846]
[1766952760930,0.05975237,123.29,123.25,3.29816846]
[1766952765624,9.67474262,123.32,123.25,10.60536846]
[1766952765825,9.67474262,123.32,123.26,3.4]
[1766952766734,0.05369897,123.3,123.28,0.06163551]
[1766952773733,0.05369897,123.3,123.28,3.30163551]
[1766952780936,0.05369897,123.3,123.28,0.06163551]
[1766952781143,2.37104262,123.29,123.24,3.24]
[1766952781944,6.04675135,123.31,123.24,3.24]
[1766952782144,2.42347691,123.29,123.26,0.05196556]
[1766952804242,9.72857691,123.29,123.23,3.23]
[1766952805155,9.72857691,123.29,123.25,0.05629132]
[1766952807550,7.35753429,123.29,123.25,0.05629132]
[1766952810057,0.05243429,123.29,123.25,0.05629132]
[1766952823475,6.13186306,123.29,123.25,0.05629132]
[1766952823667,0.05243429,123.29,123.25,0.05629132]
[1766952824070,6.13252927,123.29,123.25,0.05629132]
[1766952824275,0.05243429,123.29,123.25,0.05629132]
[1766952824472,6.13633994,123.29,123.25,0.05629132]
[1766952830584,6.13633994,123.29,123.25,3.35629132]
[1766952830786,0.05243429,123.29,123.25,3.35629132]
[1766952845804,0.05243429,123.29,123.25,10.66359132]
[1766952845995,0.05243429,123.29,123.26,3.54]
[1766952850800,0.00243429,123.29,123.26,10.8465]
[1766952851105,0.00243429,123.29,123.27,3.54]
[1766952852204,0.00243429,123.29,123.28,3.54]
[1766952853405,0.00243429,123.29,123.26,3.54]
[1766952881938,0.00243429,123.29,123.26,5.05774655]
[1766952882137,0.00243429,123.29,123.27,3.52]
[1766952883638,0.00243429,123.29,123.27,10.826]
[1766952892358,0.00243429,123.29,123.28,3.26]
[1766952900359,1.84839582,123.35,123.29,3.26]
[1766952901263,0.06108828,123.33,123.31,0.05691861]
[1766952905255,0.00108828,123.33,123.31,3.31691861]
[1766952912162,0.00108828,123.33,123.31,0.05691861]
[1766952912366,0.00108828,123.33,123.29,3.26]
[1766952913264,0.00108828,123.33,123.3,0.05444283]
[1766952914465,2.51761457,123.34,123.3,3.31444283]
[1766952914670,1.41127806,123.39,123.3,3.31444283]
[1766952914969,2.37008455,123.38,123.3,3.26]
[1766952915158,1.41127806,123.39,123.31,3.36]
[1766952915363,2.37008455,123.38,123.31,3.36]
[1766952915558,0.06165791,123.36,123.33,0.06174325]
[1766952917172,0.06165791,123.36,123.33,3.42174325]
[1766952921686,0.00165791,123.36,123.33,3.42174325]
[1766952922685,0.00165791,123.36,123.33,10.72414325]
[1766952922886,0.00165791,123.36,123.34,3.36]
[1766952934994,0.00165791,123.36,123.33,0.06174325]
[1766952935498,2.37174246,123.36,123.33,0.06174325]
[1766952936990,2.37008455,123.34,123.3,3.36]
[1766952938098,0.05967884,123.33,123.31,0.05191958]
[1766952938890,2.37008455,123.4,123.31,3.41191958]
[1766952939093,2.37008455,123.37,123.31,3.36]
[1766952939996,0.05554334,123.35,123.33,0.05204901]
[1766952943499,7.2995,123.39,123.33,3.41204901]
[1766952944299,1.41102056,123.41,123.33,3.41204901]
[1766952944500,0.058996,123.38,123.36,0.05980785]
[1766952945901,1.57423334,123.38,123.32,10.793]
[1766952946100,1.57423334,123.38,123.33,3.49]
[1766952946897,1.57423334,123.38,123.34,3.551772]
[1766952947399,0.058996,123.38,123.34,3.551772]
[1766952948903,1.57423334,123.38,123.34,3.551772]
[1766952951307,0.058996,123.38,123.34,3.551772]
[1766952952908,1.57423334,123.38,123.34,3.551772]
[1766952955614,1.51523734,123.39,123.34,3.551772]
[1766952956519,0.05169411,123.38,123.34,3.551772]
[1766952958916,0.00169411,123.38,123.34,3.551772]
[1766952959117,0.00169411,123.38,123.35,3.2]
[1766952965226,1.41076315,123.44,123.35,3.2]
[1766952965227,1.51523734,123.43,123.37,3.2]
[1766952965429,1.51523734,123.42,123.37,3.2]
[1766952966029,7.2965,123.44,123.37,3.2]
[1766952966238,1.51523734,123.41,123.39,0.05920687]
[1766952969439,0.05730613,123.42,123.39,3.25920687]
[1766952972838,1.57254347,123.42,123.39,3.25920687]
[1766952974035,0.05730613,123.42,123.39,3.25920687]
[1766952978934,0.05730613,123.42,123.4,3.43]
[1766952980845,0.01824903,123.42,123.4,3.43]
[1766952981741,8.70442004,123.48,123.41,3.43]
[1766952981941,1.51523734,123.46,123.41,3.43]
[1766952982842,0.06070181,123.45,123.42,3.48259515]
[1766952983041,1.57593915,123.45,123.42,3.48259515]
[1766952984543,0.06070181,123.45,123.42,3.48259515]
[1766952985542,0.00070181,123.45,123.42,3.48259515]
[1766952985743,0.00070181,123.45,123.42,7.34959515]
[1766952985945,0.00070181,123.45,123.43,3.43]
[1766952991046,1.51593915,123.45,123.42,0.05259515]
[1766952991847,1.51523734,123.43,123.42,0.05259515]
[1766952992247,1.51523734,123.43,123.39,3.43]
[1766952992447,1.51523734,123.42,123.39,3.43]
[1766952993353,1.57760571,123.42,123.39,3.49015905]
[1766952998055,1.51523734,123.41,123.39,0.06015905]
[1766953000551,1.57760571,123.42,123.39,0.06015905]
[1766953002053,1.51523734,123.41,123.39,0.06015905]
[1766953003456,1.51523734,123.4,123.35,10.7309]
[1766953003755,1.51523734,123.39,123.35,10.7309]
[1766953003954,1.51523734,123.4,123.36,3.43]
[1766953004458,0.05729823,123.39,123.37,0.05661362]
[1766953009648,7.297,123.43,123.37,3.47661362]
[1766953010054,2.36740266,123.44,123.37,3.47661362]
[1766953010357,2.36740266,123.48,123.39,3.42]
[1766953010754,0.05916155,123.45,123.42,0.05505287]
[1766953017362,6.05667104,123.45,123.39,3.42]
[1766953017566,2.36740266,123.44,123.39,3.42]
[1766953018262,2.36740266,123.44,123.4,0.05655173]
[1766953019167,2.36740266,123.44,123.37,3.5]
[1766953019369,2.36740266,123.42,123.35,3.5]
[1766953020369,0.06202847,123.4,123.37,0.05459461]
[1766953021166,2.42943113,123.4,123.37,0.05459461]
[1766953021468,2.42943113,123.4,123.34,3.5]
[1766953022368,2.42943113,123.4,123.36,0.06087514]
[1766953043393,0.06202847,123.4,123.36,0.06087514]
[1766953043589,2.42943113,123.4,123.36,0.06087514]
[1766953043785,0.06202847,123.4,123.36,3.32087514]
[1766953064117,7.2968,123.43,123.37,3.26]
[1766953064413,9.66420266,123.43,123.37,3.26]
[1766953065115,0.06060112,123.41,123.39,0.05631125]
[1766953068419,1.57541255,123.41,123.39,0.05631125]
[1766953068621,1.57541255,123.41,123.38,3.53]
[1766953069520,1.57541255,123.41,123.38,3.58297683]
[1766953080829,1.51481143,123.4,123.38,0.05297683]
[1766953081723,1.57541255,123.41,123.38,3.58297683]
[1766953081930,0.00060112,123.41,123.38,3.58297683]
[1766953082325,0.00060112,123.41,123.39,3.53]
[1766953082633,0.00060112,123.41,123.38,1.56778826]
[1766953082634,1.51481143,123.47,123.41,3.53]
[1766953082826,7.48591748,123.47,123.41,3.53]
[1766953083025,7.48591748,123.47,123.42,3.53]
[1766953083624,0.05122085,123.46,123.43,3.59069122]
[1766953083928,0.05350632,123.46,123.43,3.58803946]
[1766953084632,1.56831775,123.46,123.43,3.58803946]
[1766953086533,0.00350632,123.46,123.43,3.58803946]
[1766953087421,1.51831775,123.46,123.43,3.58803946]
[1766953087627,1.51481143,123.45,123.43,3.58803946]
[1766953088529,1.51481143,123.45,123.43,0.05803946]
[1766953088736,1.51481143,123.44,123.41,3.53]
[1766953089534,0.00350632,123.46,123.41,3.53]
[1766953089734,1.51831775,123.46,123.41,3.58506533]
[1766953091933,1.51481143,123.45,123.41,3.58506533]
[1766953092636,0.00350632,123.46,123.41,3.58506533]
[1766953092836,1.51481143,123.45,123.41,3.58506533]
[1766953096239,1.51831775,123.46,123.41,3.58506533]
[1766953097942,0.00350632,123.46,123.42,3.5]
[1766953098544,0.00350632,123.46,123.43,3.5]
[1766953109553,1.51831775,123.46,123.43,3.5]
[1766953110246,0.00350632,123.46,123.43,3.5]
[1766953110447,1.51831775,123.46,123.43,3.5]
[1766953111053,0.00350632,123.46,123.43,3.5]
[1766953122673,0.00350632,123.46,123.44,3.5]
[1766953122872,0.00350632,123.46,123.44,3.55224031]
[1766953123474,0.00350632,123.46,123.45,3.5]
[1766953133783,0.00350632,123.46,123.44,0.05224031]
[1766953134281,0.00350632,123.46,123.44,3.30224031]
[1766953142083,0.00350632,123.46,123.44,7.34814031]
[1766953142287,0.00350632,123.46,123.45,3.25]
[1766953143581,2.36398474,123.52,123.47,3.25]
[1766953144487,0.05714131,123.51,123.48,0.060142]
[1766953181514,0.05714131,123.51,123.48,3.320142]
[1766953183807,11.68415603,123.53,123.48,3.320142]
[1766953183808,2.02937129,123.53,123.48,3.320142]
[1766953184915,0.05914097,123.52,123.48,3.320142]
[1766953187411,1.57096438,123.52,123.48,3.320142]
[1766953187716,0.05914097,123.52,123.48,3.320142]
[1766953188818,0.05914097,123.52,123.48,10.613742]
[1766953189022,0.05914097,123.52,123.49,3.33]
[1766953193628,1.57096438,123.52,123.49,3.33]
[1766953197631,1.57096438,123.52,123.48,0.060142]
[1766953198025,1.57096438,123.52,123.48,3.250142]
[1766953205039,1.51182341,123.51,123.48,3.250142]
[1766953206536,1.51182341,123.5,123.46,3.19]
[1766953206842,1.51182341,123.49,123.46,3.19]
[1766953207038,1.51182341,123.5,123.46,3.19]
[1766953207227,1.51182341,123.49,123.46,3.19]
[1766953207435,1.51182341,123.47,123.44,3.19]
[1766953207738,0.06098866,123.49,123.44,3.19]
[1766953207941,1.51182341,123.48,123.44,3.19]
[1766953208643,1.51182341,123.48,123.45,3.24319904]
[1766953219140,0.06098866,123.49,123.45,3.24319904]
[1766953219445,1.57281207,123.49,123.45,3.24319904]
[1766953220752,0.06098866,123.49,123.45,3.24319904]
[1766953226150,1.51182341,123.47,123.45,0.00319904]
[1766953226353,1.51182341,123.46,123.43,3.38]
[1766953227061,1.51182341,123.44,123.41,3.38]
[1766953227452,1.56500237,123.44,123.41,3.43437419]
[1766953228550,0.05317896,123.44,123.41,3.43437419]
[1766953233760,7.2948,123.47,123.41,3.43437419]
[1766953233961,1.51182341,123.45,123.41,3.43437419]
[1766953234863,0.05977362,123.44,123.41,3.43437419]
[1766953242262,7.295,123.46,123.41,3.43437419]
[1766953243265,0.06077975,123.45,123.41,3.43437419]
[1766953249570,0.00077975,123.45,123.41,3.43437419]
[1766953262664,0.00077975,123.45,123.42,3.44]
[1766953263570,0.00077975,123.45,123.43,3.44]
[1766953268873,0.00077975,123.45,123.43,5.80553285]
[1766953269173,0.00077975,123.45,123.44,3.44]
[1766953271774,3.98492154,123.52,123.44,3.44]
[1766953271977,1.61938869,123.52,123.46,3.44]
[1766953272172,7.62031033,123.52,123.46,3.44]
[1766953272378,1.61938869,123.52,123.46,3.44]
[1766953272772,0.05449984,123.5,123.48,0.0514527]
[1766953275477,0.05449984,123.5,123.48,3.2514527]
[1766953279884,0.00449984,123.5,123.48,3.2514527]
[1766953292695,0.00449984,123.5,123.48,10.5450527]
[1766953293100,0.00449984,123.5,123.49,3.2]
[1766953312121,0.00449984,123.5,123.49,4.71155338]
[1766953317731,0.00449984,123.5,123.49,3.2]
[1766953320730,0.00449984,123.5,123.49,4.71155338]
[1766953326135,0.00449984,123.5,123.49,3.2]
[1766953339045,0.00449984,123.5,123.49,4.71155338]
[1766953348151,0.00449984,123.5,123.49,3.2]
[1766953354360,0.00449984,123.5,123.49,4.71155338]
[1766953357956,1.51155338,123.55,123.5,10.6722]
[1766953358961,0.0609229,123.54,123.51,0.05369365]
[1766953371676,0.0609229,123.54,123.51,7.34529365]
[1766953374184,0.0609229,123.54,123.51,3.26369365]
[1766953374978,8.36379471,123.58,123.51,3.26369365]
[1766953375589,8.36379471,123.58,123.52,7.2911]
[1766953375888,6.00243296,123.58,123.52,7.2911]
[1766953376181,0.03999396,123.56,123.54,0.05926155]
[1766953378280,0.03999396,123.56,123.52,7.2911]
[1766953379386,0.03999396,123.56,123.53,0.05366698]
[1766953390695,0.03999396,123.56,123.53,3.26366698]
[1766953391793,95.74,123.59,123.54,3.21]
[1766953392595,9.64786175,123.61,123.55,3.21]
[1766953392797,0.056713,123.59,123.57,0.06183034]
[1766953396304,12.46318714,123.68,123.59,3.54]
[1766953396598,0.87,123.66,123.59,3.54]
[1766953397500,0.87,123.66,123.61,0.06160319]
[1766953401104,0.87,123.66,123.61,3.60160319]